[Event "European Amateur-ch U2300 2019"]
[Site "Rhodes"]
[Date "2019.04.11"]
[Round "6.4"]
[White "Samaridis, Konstantinos"]
[Black "Shukan, Alexander"]
[Result "0-1"]
[ECO "A44"]
[WhiteElo "2022"]
[BlackElo "2088"]
[Annotator "NA"]
[PlyCount "72"]
[EventDate "2019.04.06"]
[EventType "swiss"]
[EventCountry "GRE"]
[SourceTitle "playchess.com"]
[Source "ChessBase"]
[SourceQuality "1"]
[TimeControl "40/5400+30:1800+30"]

1. d4 {[%emt 0:00:00]} c5 {[%emt 0:00:00]} 2. d5 {[%emt 0:00:38]} e5 {[%emt 0:00:00]} 3. e4 {[%emt 0:04:11]} d6 {[%emt 0:00:00]} 4. c4 {[%emt 0:06:59]} Be7 {[%emt 0:00:00]} 5. Nc3 {[%emt 0:03:10]} Bg5 {[%emt 0:00:16]} 6. Nge2 {[%emt 0:04:44]} Bxc1 {[%emt 0:00:13]} 7. Nxc1 {[%emt 0:01:25]} Ne7 {[%emt 0:08:28]} 8. Be2 {[%emt 0:04:25]} O-O {[%emt 0:00:22]} 9. Nd3 {[%emt 0:02:33]} f5 {[%emt 0:00:40]} 10. f3 {[%emt 0:01:23]} a6 {[%emt 0:06:06]} 11. a4 {[%emt 0:04:05]} b6 {[%emt 0:06:19]} 12. Qd2 {[%emt 0:08:07]} fxe4 {[%emt 0:00:50]} 13. fxe4 {[%emt 0:00:50]} Ng6 {[%emt 0:00:09]} 14. g3 {[%emt 0:07:05]} Bh3 {[%emt 0:05:21]} 15. Bf1 {[%emt 0:01:13]} Bd7 {[%emt 0:06:02]} 16. Bg2 {[%emt 0:01:46]} Ra7 {[%emt 0:00:21]} 17. Rf1 {[%emt 0:01:58]} Rb7 {[%emt 0:02:01]} 18. Rxf8+ {[%emt 0:04:56]} Qxf8 $14 {[%emt 0:02:26]} 19. Qe2 {[%emt 0:18:34]} Bc8 {[%emt 0:08:23]} 20. Kd2 {[%emt 0:02:59]} Nd7 {[%emt 0:05:43]} 21. Bh3 {[%emt 0:02:33]} Nf6 {[%emt 0:00:13]} 22. Bxc8 {[%emt 0:05:47]} Qxc8 {[%emt 0:00:04]} 23. Rf1 {[%emt 0:03:07]} Qh3 {[%emt 0:01:29]} 24. Rh1 {[%emt 0:03:11]} Ng4 {[%emt 0:01:38]} 25. Nf2 {[%emt 0:01:22]} Qh6+ {[%emt 0:06:29]} 26. Kd3 {[%emt 0:00:32]} Nxf2+ {[%emt 0:01:56]} 27. Qxf2 {[%emt 0:00:02]} Rf7 {[%emt 0:00:33]} 28. Qe2 {[%emt 0:03:07]} Qh3 {[%emt 0:00:47]} 29. Kd2 {[%emt 0:00:05]} h5 {[%emt 0:00:29]} 30. Rg1 {[%emt 0:01:57]} h4 {[%emt 0:07:54]} 31. Qg2 {[%emt 0:00:50]} Qg4 {[%emt 0:05:02]} 32. gxh4 {[%emt 0:01:49]} Qf4+ {[%emt 0:01:30]} 33. Ke2 {[%emt 0:00:31]} Nxh4 {[%emt 0:01:42]} 34. Qg3 {[%emt 0:00:19]} Nf3 {[%emt 0:00:22]} 35. Rd1 {[%emt 0:00:35]} Nd4+ {[%emt 0:00:56]} 36. Kd3 {[%emt 0:00:35]} Qh6 {[%emt 0:01:07] Kxd4 [%emt 00:00:55]} 0-1

[Event "European Amateur-ch U2300 2019"]
[Site "Rhodes"]
[Date "2019.04.11"]
[Round "6.5"]
[White "Minko, Dmitry"]
[Black "Brouwer, Dennis"]
[Result "0-1"]
[ECO "B56"]
[WhiteElo "2169"]
[BlackElo "2179"]
[Annotator "NA"]
[PlyCount "96"]
[EventDate "2019.04.06"]
[EventType "swiss"]
[EventCountry "GRE"]
[SourceTitle "playchess.com"]
[Source "ChessBase"]
[SourceQuality "1"]
[TimeControl "40/5400+30:1800+30"]

1. e4 {[%emt 0:00:00]} c5 {[%emt 0:00:00]} 2. Nf3 {[%emt 0:00:00]} Nc6 {[%emt 0:00:00]} 3. d4 {[%emt 0:00:00]} cxd4 {[%emt 0:00:00]} 4. Nxd4 {[%emt 0:00:00]} Nf6 {[%emt 0:00:05]} 5. Nc3 {[%emt 0:00:00]} d6 {[%emt 0:00:20]} 6. f3 {[%emt 0:05:54]} e5 {[%emt 0:00:12]} 7. Nb3 {[%emt 0:00:55]} Be7 {[%emt 0:00:09]} 8. Be3 {[%emt 0:01:00]} O-O {[%emt 0:00:09]} 9. Qd2 {[%emt 0:04:10]} a5 {[%emt 0:00:07]} 10. Bb5 {[%emt 0:17:01]} Be6 {[%emt 0:00:09]} 11. Nd5 {[%emt 0:00:41]} a4 {[%emt 0:06:13]} 12. Bb6 {[%emt 0:07:14]} Qb8 {[%emt 0:03:49]} 13. Bxc6 {[%emt 0:19:05]} bxc6 {[%emt 0:01:12]} 14. Bc7 {[%emt 0:00:07]} cxd5 {[%emt 0:23:31]} 15. Bxb8 {[%emt 0:00:40]} axb3 {[%emt 0:01:36]} 16. exd5 {[%emt 0:03:40]} Nxd5 {[%emt 0:15:13]} 17. c4 {[%emt 0:09:14]} Nb6 {[%emt 0:06:11]} 18. Bxd6 {[%emt 0:08:22]} Nxc4 {[%emt 0:07:01]} 19. Bxe7 {[%emt 0:01:54]} Nxd2 {[%emt 0:00:32]} 20. Bxf8 {[%emt 0:01:54]} Nc4 {[%emt 0:00:43]} 21. Ba3 {[%emt 0:00:34]} Nxa3 {[%emt 0:04:11]} 22. bxa3 {[%emt 0:00:19]} bxa2 {[%emt 0:00:25]} 23. Kd2 {[%emt 0:04:33]} Rxa3 {[%emt 0:01:10]} 24. Rhe1 {[%emt 0:01:39]} Ra5 {[%emt 0:02:28]} 25. Re2 {[%emt 0:07:05]} g6 {[%emt 0:09:33]} 26. Kc3 {[%emt 0:02:06]} Kg7 {[%emt 0:01:43]} 27. Rb2 {[%emt 0:02:35]} Kf6 {[%emt 0:00:41]} 28. Kd2 {[%emt 0:00:20]} h5 {[%emt 0:01:18]} 29. Ke3 {[%emt 0:00:30]} Ra3+ {[%emt 0:02:06]} 30. Kf2 {[%emt 0:00:06]} g5 {[%emt 0:01:12]} 31. Re2 {[%emt 0:01:11]} g4 {[%emt 0:01:28]} 32. Re3 {[%emt 0:02:02]} Ra4 {[%emt 0:00:38]} 33. Re2 {[%emt 0:00:52]} Ra3 {[%emt 0:00:34]} 34. fxg4 {[%emt 0:00:17]} hxg4 {[%emt 0:00:09]} 35. Re3 {[%emt 0:00:40]} Ra5 {[%emt 0:00:20]} 36. Re2 {[%emt 0:00:38]} Kf5 {[%emt 0:01:14]} 37. Kg3 {[%emt 0:00:33]} Kg5 {[%emt 0:00:57]} 38. Kf2 {[%emt 0:00:25]} f5 {[%emt 0:03:56]} 39. Kg3 {[%emt 0:00:36]} f4+ {[%emt 0:02:15]} 40. Kf2 {[%emt 0:00:00]} Kf5 {[%emt 0:00:00]} 41. g3 {[%emt 0:07:09]} f3 {[%emt 0:07:11]} 42. Rb2 {[%emt 0:05:38]} Ra3 {[%emt 0:01:41]} 43. Rb5 {[%emt 0:00:24]} Kf6 {[%emt 0:01:05]} 44. Rb4 {[%emt 0:00:07]} Rc3 {[%emt 0:07:28]} 45. Ra4 {[%emt 0:05:38]} Rc2+ {[%emt 0:00:14]} 46. Kg1 {[%emt 0:00:05]} f2+ {[%emt 0:08:16]} 47. Kg2 {[%emt 0:01:31]} Bd5+ {[%emt 0:00:32]} 48. Kf1 {[%emt 0:00:04]} Rb2 {[%emt 0:00:22]} 0-1

[Event "European Amateur-ch U2300 2019"]
[Site "Rhodes"]
[Date "2019.04.12"]
[Round "7.1"]
[White "Brouwer, Dennis"]
[Black "Yungucu, Arda"]
[Result "1-0"]
[ECO "B30"]
[WhiteElo "2179"]
[BlackElo "1959"]
[Annotator "NA"]
[PlyCount "67"]
[EventDate "2019.04.06"]
[EventType "swiss"]
[EventCountry "GRE"]
[SourceTitle "playchess.com"]
[Source "ChessBase"]
[SourceQuality "1"]
[TimeControl "40/5400+30:1800+30"]

1. e4 {[%emt 0:00:00]} c5 {[%emt 0:00:00]} 2. Nf3 {[%emt 0:00:00]} Nc6 {[%emt 0:00:00]} 3. Bb5 {[%emt 0:00:00]} e6 {[%emt 0:00:05]} 4. O-O {[%emt 0:00:18]} Nge7 {[%emt 0:00:07]} 5. Re1 {[%emt 0:00:37]} a6 {[%emt 0:00:20]} 6. Bf1 {[%emt 0:01:12]} d5 {[%emt 0:00:20]} 7. exd5 {[%emt 0:05:32]} Nxd5 {[%emt 0:00:15]} 8. d4 {[%emt 0:00:15]} Nf6 {[%emt 0:00:30]} 9. Be3 {[%emt 0:00:28]} cxd4 {[%emt 0:00:40]} 10. Nxd4 {[%emt 0:00:19] LiveBook: 57 Games} Nxd4 {[%emt 0:00:34]} 11. Bxd4 {[%emt 0:04:42] B30: Sicilian: 2...Nc6 3 Bb5, lines without ...g6} Bd7 {[%emt 0:01:27]} 12. c4 {[%emt 0:03:05]} Bc6 {[%emt 0:05:22]} 13. Nc3 {[%emt 0:00:40]} Be7 {[%emt 0:04:03]} 14. a3 {[%emt 0:12:36] [#]} Qd7 $146 {[%emt 0:17:27]} ({Predecessor:} 14... a5 15. Qd3 O-O 16. Rad1 Qc7 17. Be5 {1-0 (48) Carlsen,M (2872)-Gelfand,B (2740) London 2013}) 15. Qd3 {[%emt 0:01:41]} O-O {[%emt 0:03:21]} 16. Rad1 {[%emt 0:00:53]} Rfd8 {[%emt 0:02:50]} 17. Qc2 {[%emt 0:05:32]} Qe8 {[%emt 0:04:09]} 18. b4 {[%emt 0:18:52]} b5 {[%emt 0:08:52]} 19. c5 {[%emt 0:00:46]} a5 {[%emt 0:13:12]} 20. Qb2 {[%emt 0:09:13]} axb4 {[%emt 0:01:06]} 21. axb4 {[%emt 0:00:36]} Ra7 {[%emt 0:00:53]} 22. Be5 {[%emt 0:02:46]} Ng4 {[%emt 0:07:46]} 23. Rxd8 {[%emt 0:11:40]} Bxd8 {[%emt 0:03:47]} 24. Bd4 {[%emt 0:00:49]} Qd7 {[%emt 0:05:54]} 25. Ne4 {[%emt 0:03:46]} e5 {[%emt 0:10:48]} 26. Bxe5 $18 {[%emt 0:00:54]} Qe6 {[%emt 0:01:25]} 27. Bc3 {[%emt 0:09:43]} Bxe4 {[%emt 0:04:45]} 28. f3 {[%emt 0:00:06]} f5 {[%emt 0:02:28]} 29. fxg4 {[%emt 0:00:35]} Ra2 {[%emt 0:00:45]} 30. Qc1 {[%emt 0:01:34]} Bh4 {[%emt 0:00:41]} 31. g3 {[%emt 0:00:55]} Be7 {[%emt 0:00:18]} 32. gxf5 {[%emt 0:01:03]} Qc6 {[%emt 0:00:38]} 33. Qe3 {[%emt 0:01:17]} Bg5 {[%emt 0:01:10]} 34. Qxe4 {[%emt 0:00:23]} 1-0

[Event "European Amateur-ch U2300 2019"]
[Site "Rhodes"]
[Date "2019.04.12"]
[Round "7.2"]
[White "Shukan, Alexander"]
[Black "Minko, Dmitry"]
[Result "0-1"]
[ECO "C26"]
[WhiteElo "2088"]
[BlackElo "2169"]
[Annotator "NA"]
[PlyCount "84"]
[EventDate "2019.04.06"]
[EventType "swiss"]
[EventCountry "GRE"]
[SourceTitle "playchess.com"]
[Source "ChessBase"]
[SourceQuality "1"]
[TimeControl "40/5400+30:1800+30"]

1. e4 {[%emt 0:00:00]} e5 {[%emt 0:00:00]} 2. Nf3 {[%emt 0:00:00]} Nc6 {[%emt 0:00:00]} 3. Nc3 {[%emt 0:00:23]} Nf6 {[%emt 0:00:00]} 4. g3 {[%emt 0:00:04]} Bc5 {[%emt 0:14:07]} 5. Bg2 {[%emt 0:00:10]} d6 {[%emt 0:00:20]} 6. h3 {[%emt 0:00:08]} a6 {[%emt 0:08:06]} 7. d3 {[%emt 0:02:43]} h6 {[%emt 0:06:53]} 8. O-O {[%emt 0:00:49]} O-O {[%emt 0:08:04]} 9. Be3 {[%emt 0:05:41]} Nh7 {[%emt 0:13:46]} 10. Nd5 $11 {[%emt 0:25:29]} Bxe3 {[%emt 0:13:38]} 11. Nxe3 {[%emt 0:08:15]} Ne7 {[%emt 0:03:00]} 12. d4 {[%emt 0:05:02]} Ng6 {[%emt 0:02:05]} 13. Nf5 {[%emt 0:10:53]} Qf6 {[%emt 0:05:56]} 14. Ne3 {[%emt 0:02:10]} Be6 {[%emt 0:01:32]} 15. d5 {[%emt 0:00:44]} Bd7 {[%emt 0:00:32]} 16. Nh2 {[%emt 0:01:09]} Rae8 {[%emt 0:01:30]} 17. h4 {[%emt 0:03:27]} Qd8 {[%emt 0:01:23]} 18. Qh5 {[%emt 0:04:12]} Ne7 {[%emt 0:02:43]} 19. f4 {[%emt 0:06:19]} exf4 {[%emt 0:00:45]} 20. gxf4 {[%emt 0:00:32]} Ng6 {[%emt 0:02:12]} 21. Nf5 {[%emt 0:07:29]} Bxf5 {[%emt 0:01:58]} 22. exf5 {[%emt 0:01:41]} Nf6 {[%emt 0:01:09]} 23. Qd1 {[%emt 0:00:51]} Nxh4 {[%emt 0:00:35]} 24. Bh3 {[%emt 0:00:11]} Re3 {[%emt 0:00:26]} 25. Nf3 {[%emt 0:04:43]} Nxf3+ {[%emt 0:01:15]} 26. Rxf3 {[%emt 0:00:04]} Qe7 {[%emt 0:00:05]} 27. Bg2 {[%emt 0:01:35]} Ng4 {[%emt 0:00:54]} 28. Qd4 {[%emt 0:01:21]} Qh4 {[%emt 0:04:38]} 29. Rxe3 {[%emt 0:02:09]} Qf2+ {[%emt 0:00:07]} 30. Kh1 {[%emt 0:00:04]} Nxe3 {[%emt 0:00:34]} 31. Qe4 {[%emt 0:02:42]} Qg3 {[%emt 0:02:20]} 32. Qf3 {[%emt 0:00:32]} Qxf3 {[%emt 0:01:34]} 33. Bxf3 {[%emt 0:00:04]} Nxc2 {[%emt 0:00:22]} 34. Rc1 {[%emt 0:02:29]} Nd4 {[%emt 0:00:08]} 35. Be4 {[%emt 0:00:11]} Re8 {[%emt 0:00:04]} 36. Bd3 {[%emt 0:00:54]} Re3 {[%emt 0:00:25]} 37. Rd1 {[%emt 0:00:57]} Nf3 {[%emt 0:02:11]} 38. a4 {[%emt 0:01:17]} Kf8 {[%emt 0:00:34]} 39. b4 {[%emt 0:00:12]} Ke7 {[%emt 0:00:30]} 40. b5 {[%emt 0:00:00]} axb5 {[%emt 0:00:00]} 41. axb5 {[%emt 0:05:18]} Kf6 {[%emt 0:02:45]} 42. Bb1 {[%emt 0:00:42]} Re2 {[%emt 0:00:11]} 0-1

[Event "European Amateur-ch U2300 2019"]
[Site "Rhodes"]
[Date "2019.04.12"]
[Round "7.3"]
[White "Zherebtsova, Alexandra"]
[Black "Samaridis, Konstantinos"]
[Result "1/2-1/2"]
[ECO "D32"]
[WhiteElo "2203"]
[BlackElo "2022"]
[Annotator "NA"]
[PlyCount "80"]
[EventDate "2019.04.06"]
[EventType "swiss"]
[EventCountry "GRE"]
[SourceTitle "playchess.com"]
[Source "ChessBase"]
[SourceQuality "1"]
[TimeControl "40/5400+30:1800+30"]

1. Nf3 {[%emt 0:00:00]} Nf6 {[%emt 0:00:26]} 2. c4 {[%emt 0:00:06]} e6 {[%emt 0:00:07]} 3. Nc3 {[%emt 0:04:15]} d5 {[%emt 0:00:13]} 4. e3 {[%emt 0:00:11]} c5 {[%emt 0:02:05]} 5. cxd5 {[%emt 0:01:53]} exd5 {[%emt 0:00:58]} 6. d4 {[%emt 0:00:14]} Nc6 {[%emt 0:02:19]} 7. Be2 {[%emt 0:00:55]} Be7 {[%emt 0:02:23]} 8. dxc5 {[%emt 0:05:02]} Bxc5 {[%emt 0:00:38]} 9. O-O {[%emt 0:00:23]} O-O {[%emt 0:00:17]} 10. b3 {[%emt 0:06:43]} a6 {[%emt 0:08:41]} 11. Bb2 {[%emt 0:02:25]} Ba7 {[%emt 0:28:13]} 12. Rc1 {[%emt 0:21:55]} Re8 {[%emt 0:00:00]} 13. Re1 {[%emt 0:15:12] D32: Tarrasch Defence: Sidelines and lines without g3} (13. Na4 Ne4 14. Nd4 Bd7 15. Nxc6 Bxc6 16. Bd4 Bxa4 17. bxa4 Bb8 18. g3 Be5 19. Bxe5 Rxe5 20. Qd4 Qe7 21. Rc2 Re8 22. Bf3 {1-0 (50) Cori Tello,J (2664)-Volodin,A (2457) Batumi 2018}) 13... Qd6 {[%emt 0:02:15]} 14. Qd2 $146 {[%emt 0:12:48]} ({Predecessor:} 14. Qd3 Bg4 15. Nh4 d4 16. exd4 Nxd4 17. Bf1 Qf4 18. g3 Qg5 19. Ne4 Nxe4 20. Rxe4 Ne6 {½-½ (72) Stojanovic,M (2425)-Lopez Martinez,J (2474) Belgrade 2001}) 14... Bg4 {[%emt 0:03:44]} 15. Rcd1 {[%emt 0:07:46]} Rad8 {[%emt 0:02:36]} 16. Qc1 {[%emt 0:04:18]} Qe6 {[%emt 0:19:05]} 17. Na4 {[%emt 0:05:35]} Rc8 {[%emt 0:08:11]} 18. Qd2 {[%emt 0:03:40]} b5 {[%emt 0:04:02]} 19. Nc3 {[%emt 0:01:34]} Rcd8 {[%emt 0:00:18]} 20. h3 {[%emt 0:01:57]} Bh5 {[%emt 0:05:08]} 21. Ng5 {[%emt 0:01:38]} Qf5 {[%emt 0:00:39]} 22. Bxh5 {[%emt 0:00:11]} Qxg5 {[%emt 0:03:14]} 23. Bf3 {[%emt 0:00:42]} Ne4 {[%emt 0:01:31]} 24. Qe2 {[%emt 0:01:56]} Nxf2 {[%emt 0:02:15]} 25. Qxf2 {[%emt 0:00:03]} Rxe3 {[%emt 0:00:04]} 26. Kh1 {[%emt 0:00:50]} Rxc3 {[%emt 0:01:16]} 27. Qd2 {[%emt 0:00:35]} Qxd2 {[%emt 0:01:28]} 28. Rxd2 {[%emt 0:00:12]} Re3 {[%emt 0:00:19]} 29. Rxe3 {[%emt 0:00:50]} Bxe3 {[%emt 0:00:04]} 30. Rxd5 {[%emt 0:00:30]} Rxd5 {[%emt 0:00:18]} 31. Bxd5 {[%emt 0:00:04]} Nb4 {[%emt 0:01:41]} 32. Bb7 $1 {[%emt 0:00:04]} Nxa2 {[%emt 0:00:27]} 33. Bxa6 {[%emt 0:00:07]} b4 {[%emt 0:00:02]} 34. Be5 {[%emt 0:01:06]} Bc5 {[%emt 0:00:31]} 35. g3 {[%emt 0:01:08]} f6 {[%emt 0:00:14]} 36. Bf4 {[%emt 0:00:28]} Kf7 {[%emt 0:00:26]} 37. Kg2 $11 {[%emt 0:00:04]} Ke7 {[%emt 0:01:21]} 38. Kf3 {[%emt 0:00:10]} Nc3 {[%emt 0:00:24]} 39. Bc4 {[%emt 0:00:42]} g5 {[%emt 0:00:46]} 40. Bd2 {[%emt 0:00:00]} h5 {[%emt 0:00:00] Ke4 [%emt 00:01:00]} 1/2-1/2

[Event "European Amateur-ch U2300 2019"]
[Site "Rhodes"]
[Date "2019.04.12"]
[Round "7.4"]
[White "Van De Perre, Tom"]
[Black "Andreev, Stanislav"]
[Result "0-1"]
[ECO "B13"]
[WhiteElo "2102"]
[BlackElo "2140"]
[Annotator "NA"]
[PlyCount "92"]
[EventDate "2019.04.06"]
[EventType "swiss"]
[EventCountry "GRE"]
[SourceTitle "playchess.com"]
[Source "ChessBase"]
[SourceQuality "1"]
[TimeControl "40/5400+30:1800+30"]

1. e4 {[%emt 0:00:00]} c6 {[%emt 0:00:00]} 2. d4 {[%emt 0:00:00]} d5 {[%emt 0:00:00]} 3. exd5 {[%emt 0:00:30]} cxd5 {[%emt 0:00:00]} 4. Bd3 {[%emt 0:00:32]} Nc6 {[%emt 0:01:06]} 5. c3 {[%emt 0:00:15]} Qc7 {[%emt 0:00:28]} 6. h3 {[%emt 0:01:05]} g6 {[%emt 0:00:30]} 7. Nf3 {[%emt 0:02:37] B13: Caro-Kann: Exchange Variation and Panov-Botvinnik Attack} (7. Qc2 f6 8. Ne2 e5 9. O-O Nge7 10. dxe5 fxe5 11. c4 e4 12. Bxe4 dxe4 13. Nbc3 Bg7 14. Nd5 Qd6 {0-1 (29) Aronian,L (2767)-Howell,D (2685) Caleta 2019}) 7... Bf5 {[%emt 0:04:28]} 8. Bb5 {[%emt 0:00:25]} Bg7 {[%emt 0:03:52]} 9. O-O {[%emt 0:01:34]} Nf6 $146 {[%emt 0:01:43]} ({Predecessor:} 9... a6 10. Bxc6+ bxc6 11. Ne5 f6 12. Nd3 Bxd3 13. Qxd3 Nh6 14. c4 O-O {½-½ (67) Epding,O (2148)-Brumm,C (2142) Bayern 2015}) 10. Re1 {[%emt 0:14:37]} O-O {[%emt 0:02:19]} 11. Nbd2 {[%emt 0:08:09]} a6 {[%emt 0:03:22]} 12. Bxc6 {[%emt 0:02:40]} bxc6 {[%emt 0:00:38]} 13. Nb3 {[%emt 0:02:11]} Ne4 {[%emt 0:02:30]} 14. Ne5 {[%emt 0:09:45]} f6 {[%emt 0:06:36]} 15. Nd3 {[%emt 0:00:31]} e5 {[%emt 0:01:29]} 16. f3 {[%emt 0:02:51]} Ng3 {[%emt 0:04:30]} 17. Nbc5 {[%emt 0:06:55]} Rfe8 {[%emt 0:07:25]} 18. Be3 {[%emt 0:02:41]} Bf8 {[%emt 0:06:18]} 19. Qd2 {[%emt 0:02:50]} Bd6 {[%emt 0:03:13]} 20. b4 {[%emt 0:06:11]} e4 {[%emt 0:11:26]} 21. fxe4 {[%emt 0:02:48]} Bxe4 {[%emt 0:06:09]} 22. Bf4 {[%emt 0:02:32]} Ra7 {[%emt 0:14:41]} 23. Bxd6 {[%emt 0:01:13]} Qxd6 {[%emt 0:00:04]} 24. Qf4 {[%emt 0:01:13]} Qxf4 {[%emt 0:00:34]} 25. Nxf4 {[%emt 0:00:02]} a5 {[%emt 0:00:33]} 26. bxa5 {[%emt 0:07:53]} Rxa5 {[%emt 0:00:25]} 27. a4 {[%emt 0:00:36]} g5 {[%emt 0:01:59]} 28. Nfd3 {[%emt 0:01:33]} Rb8 {[%emt 0:00:41]} 29. Nb4 {[%emt 0:00:25]} Rc8 {[%emt 0:03:36]} 30. Nb3 {[%emt 0:01:13]} Ra7 {[%emt 0:00:21]} 31. a5 $16 {[%emt 0:00:22]} Kf7 {[%emt 0:05:25]} 32. Nc5 {[%emt 0:01:17]} f5 {[%emt 0:00:27]} 33. a6 {[%emt 0:00:50]} h5 {[%emt 0:00:47]} 34. Ra5 {[%emt 0:01:40]} f4 {[%emt 0:02:03]} 35. Nb7 {[%emt 0:03:02]} Kf6 {[%emt 0:03:42]} 36. Rc5 {[%emt 0:01:05]} g4 {[%emt 0:00:19]} 37. Na5 {[%emt 0:02:51]} gxh3 {[%emt 0:01:04]} 38. gxh3 {[%emt 0:00:56]} Rg8 {[%emt 0:01:06]} 39. Rxc6+ {[%emt 0:00:58]} Kf5 {[%emt 0:00:12]} 40. Kf2 {[%emt 0:00:00]} Nh1+ {[%emt 0:00:00]} 41. Ke2 {[%emt 0:06:17]} f3+ {[%emt 0:17:14]} 42. Ke3 {[%emt 0:03:21]} Rg2 {[%emt 0:10:20]} 43. Nc4 {[%emt 0:03:40]} dxc4 {[%emt 0:01:52]} 44. Rc5+ {[%emt 0:00:08]} Kg6 {[%emt 0:00:34]} 45. Kxe4 {[%emt 0:06:28]} f2 {[%emt 0:00:36]} 46. Rc6+ {[%emt 0:01:22]} Kh7 {[%emt 0:01:18]} 0-1

[Event "European Amateur-ch U2300 2019"]
[Site "Rhodes"]
[Date "2019.04.12"]
[Round "7.5"]
[White "Stavropoulos, Konstantinos"]
[Black "Cmiel, Thorsten"]
[Result "1/2-1/2"]
[ECO "D51"]
[WhiteElo "2001"]
[BlackElo "2109"]
[Annotator "NA"]
[PlyCount "83"]
[EventDate "2019.04.06"]
[EventType "swiss"]
[EventCountry "GRE"]
[SourceTitle "playchess.com"]
[Source "ChessBase"]
[SourceQuality "1"]
[TimeControl "40/5400+30:1800+30"]

1. d4 {[%emt 0:00:00]} Nf6 {[%emt 0:00:00]} 2. Bg5 {[%emt 0:00:00]} d5 {[%emt 0:07:03]} 3. e3 {[%emt 0:00:08]} e6 {[%emt 0:00:29]} 4. c4 {[%emt 0:03:50]} c6 {[%emt 0:00:49]} 5. Nc3 {[%emt 0:01:51]} Nbd7 {[%emt 0:02:35]} 6. Qc2 {[%emt 0:02:38]} Qa5 {[%emt 0:01:42]} 7. Bh4 {[%emt 0:19:37]} Bb4 {[%emt 0:06:03]} 8. Bd3 {[%emt 0:15:26]} dxc4 {[%emt 0:00:07]} 9. Bxc4 {[%emt 0:00:00]} b5 {[%emt 0:11:07]} 10. Bd3 {[%emt 0:04:41]} c5 {[%emt 0:10:53]} 11. dxc5 {[%emt 0:01:18]} Bb7 {[%emt 0:00:16]} 12. Nge2 {[%emt 0:08:17]} Nxc5 {[%emt 0:18:49]} 13. O-O {[%emt 0:00:00]} a6 {[%emt 0:01:54]} 14. a3 {[%emt 0:03:31]} Bxc3 {[%emt 0:03:11]} 15. Nxc3 {[%emt 0:00:00]} Nxd3 $14 {[%emt 0:00:22]} 16. Qxd3 {[%emt 0:00:54]} O-O {[%emt 0:07:41]} 17. e4 {[%emt 0:03:07]} Qd8 {[%emt 0:09:06]} 18. Qe3 {[%emt 0:02:59]} e5 {[%emt 0:01:27]} 19. Rfd1 {[%emt 0:01:24]} Qe7 {[%emt 0:02:00]} 20. Rd2 {[%emt 0:02:31]} Rfd8 {[%emt 0:01:21]} 21. Rad1 {[%emt 0:00:10]} Rxd2 {[%emt 0:01:22]} 22. Qxd2 {[%emt 0:00:18]} Qe6 {[%emt 0:00:51]} 23. f3 {[%emt 0:02:21]} h6 {[%emt 0:01:33]} 24. Bxf6 {[%emt 0:10:02]} Qxf6 {[%emt 0:00:31]} 25. Qd7 {[%emt 0:00:30]} Qb6+ {[%emt 0:02:37]} 26. Kh1 {[%emt 0:00:03]} Bc6 {[%emt 0:02:23]} 27. Qd6 {[%emt 0:00:47]} Re8 {[%emt 0:00:10]} 28. Nd5 {[%emt 0:02:55]} Qb7 {[%emt 0:00:12]} 29. Ne3 {[%emt 0:00:52]} Re6 {[%emt 0:05:08]} 30. Qc5 {[%emt 0:02:59]} Kh7 {[%emt 0:03:25]} 31. h3 {[%emt 0:05:48]} Qe7 {[%emt 0:02:17]} 32. Qxe7 Rxe7 {[%emt 0:00:02]} 33. Rd6 {[%emt 0:01:49]} Rc7 {[%emt 0:01:55]} 34. Ng4 {[%emt 0:00:24]} f6 {[%emt 0:00:08]} 35. Ne3 {[%emt 0:00:07]} Kg8 {[%emt 0:04:23]} 36. Kh2 {[%emt 0:01:36]} Kf7 {[%emt 0:00:13]} 37. Kg3 {[%emt 0:01:11]} h5 {[%emt 0:03:31]} 38. Kh4 {[%emt 0:02:04]} g6 {[%emt 0:00:11]} 39. g4 {[%emt 0:00:14]} Ke7 {[%emt 0:00:26]} 40. Rd2 {[%emt 0:00:00]} hxg4 {[%emt 0:00:00]} 41. hxg4 {[%emt 0:00:17]} Rd7 {[%emt 0:04:55]} 42. Rxd7+ {[%emt 0:06:01]} 1/2-1/2

[Event "European Amateur-ch U2300 2019"]
[Site "Rhodes"]
[Date "2019.04.13"]
[Round "8.1"]
[White "Yungucu, Arda"]
[Black "Cmiel, Thorsten"]
[Result "1-0"]
[ECO "D03"]
[WhiteElo "1959"]
[BlackElo "2109"]
[Annotator "NA"]
[PlyCount "87"]
[EventDate "2019.04.06"]
[EventType "swiss"]
[EventCountry "GRE"]
[SourceTitle "playchess.com"]
[Source "ChessBase"]
[SourceQuality "1"]
[TimeControl "40/5400+30:1800+30"]

1. Nf3 {[%emt 0:00:13]} g6 {[%emt 0:00:00]} 2. d4 {[%emt 0:00:32]} Nf6 {[%emt 0:00:28]} 3. Bg5 {[%emt 0:00:20]} Bg7 {[%emt 0:00:10]} 4. Nbd2 {[%emt 0:00:13]} O-O {[%emt 0:02:17]} 5. c3 {[%emt 0:00:42]} d5 {[%emt 0:00:34]} 6. e3 {[%emt 0:01:24]} b6 {[%emt 0:06:00]} 7. Bd3 {[%emt 0:00:43]} Bb7 {[%emt 0:01:03]} 8. O-O {[%emt 0:10:04]} Ne4 $11 {[%emt 0:07:05]} 9. Bf4 {[%emt 0:03:15]} Nd7 {[%emt 0:01:06]} 10. Qc2 {[%emt 0:11:40]} Nxd2 {[%emt 0:03:31]} 11. Qxd2 {[%emt 0:01:27]} Re8 {[%emt 0:05:12]} 12. Ne5 {[%emt 0:15:06]} Nxe5 {[%emt 0:02:53]} 13. Bxe5 {[%emt 0:00:50]} Bxe5 {[%emt 0:02:08]} 14. dxe5 {[%emt 0:00:08]} f6 {[%emt 0:04:55]} 15. f4 {[%emt 0:12:25]} fxe5 {[%emt 0:07:49]} 16. fxe5 {[%emt 0:00:11]} Rf8 {[%emt 0:01:03]} 17. Rxf8+ {[%emt 0:06:23]} Qxf8 {[%emt 0:00:25]} 18. Qe1 {[%emt 0:00:22]} Qg7 {[%emt 0:07:22]} 19. Qg3 {[%emt 0:00:29]} Rf8 {[%emt 0:00:16]} 20. Rd1 {[%emt 0:09:54]} e6 {[%emt 0:02:31]} 21. Qg5 {[%emt 0:02:53]} c5 {[%emt 0:05:32]} 22. Rf1 {[%emt 0:04:34]} Rxf1+ {[%emt 0:04:55]} 23. Kxf1 {[%emt 0:00:07]} Qd7 {[%emt 0:04:42]} 24. h4 {[%emt 0:10:23]} d4 {[%emt 0:07:14]} 25. exd4 {[%emt 0:00:08]} cxd4 {[%emt 0:00:26]} 26. c4 {[%emt 0:00:05]} Kf8 {[%emt 0:01:01]} 27. Kg1 {[%emt 0:01:48]} Ke8 {[%emt 0:01:12]} 28. h5 {[%emt 0:00:37]} gxh5 {[%emt 0:00:10]} 29. Qxh5+ {[%emt 0:00:50]} Qf7 {[%emt 0:00:02]} 30. Qxf7+ {[%emt 0:00:45]} Kxf7 {[%emt 0:00:01]} 31. Bxh7 {[%emt 0:00:03]} Kg7 {[%emt 0:00:38]} 32. Bd3 {[%emt 0:00:56]} Kh6 {[%emt 0:00:01]} 33. Kf2 {[%emt 0:00:42]} Kg5 {[%emt 0:00:02]} 34. g3 {[%emt 0:03:52]} a5 {[%emt 0:04:54]} 35. b3 {[%emt 0:00:47]} Bc6 {[%emt 0:00:30]} 36. Ke2 {[%emt 0:01:29]} Kg4 {[%emt 0:00:14]} 37. Bh7 {[%emt 0:00:23]} Kxg3 {[%emt 0:00:25]} 38. Kd3 {[%emt 0:00:01]} Kf4 {[%emt 0:00:22]} 39. Kxd4 {[%emt 0:00:04]} Bb7 {[%emt 0:03:30]} 40. a3 {[%emt 0:00:00]} Bc6 {[%emt 0:00:00]} 41. b4 {[%emt 0:01:28]} axb4 {[%emt 0:00:55]} 42. axb4 {[%emt 0:02:06]} Bb7 {[%emt 0:04:47]} 43. Bg6 {[%emt 0:03:53]} Bc6 {[%emt 0:00:25]} 44. Bc2 {[%emt 0:00:21] Ke4+ Kxe4} 1-0